[Event "Titled Tuesday Blitz September 21 2021"]
[White "Iskusnyh, Sergei"]
[Black "Buscar, Michael"]
[WhiteFideId "4120027"]
[BlackFideId "2603616"]
[WhiteElo "2492"]
[BlackElo "2010"]
[Result "1-0"]
[Round "05"]
[TimeControl "180+1"]
[Date "2021.09.21"]
[WhiteClock "0:00:28"]
[BlackClock "0:00:01"]

1. d4 {[%clk 0:03:00]}  Nf6 {[%clk 0:02:57]} 2. c4 {[%clk 0:02:59]}  e6 {[%clk 0:02:57]} 3. g3 {[%clk 0:02:59]}  d5 {[%clk 0:02:57]} 4. Nf3 {[%clk 0:02:57]}  c5 {[%clk 0:02:57]} 5. cxd5 {[%clk 0:02:56]}  exd5 {[%clk 0:02:58]} 6. Bg2 {[%clk 0:02:55]}  Nc6 {[%clk 0:02:57]} 7. O-O {[%clk 0:02:47]}  Be7 {[%clk 0:02:57]} 8. dxc5 {[%clk 0:02:46]}  Bxc5 {[%clk 0:02:56]} 9. a3 {[%clk 0:02:46]}  O-O {[%clk 0:02:55]} 10. b4 {[%clk 0:02:44]}  Be7 {[%clk 0:02:55]} 11. Nc3 {[%clk 0:02:39]}  Be6 {[%clk 0:02:49]} 12. Bb2 {[%clk 0:02:34]}  Rc8 {[%clk 0:02:21]} 13. Rc1 {[%clk 0:02:32]}  Ne4 {[%clk 0:02:07]} 14. Nxe4 {[%clk 0:02:21]}  dxe4 {[%clk 0:02:05]} 15. Nd4 {[%clk 0:02:21]}  Nxd4 {[%clk 0:02:01]} 16. Qxd4 {[%clk 0:02:20]}  Qxd4 {[%clk 0:01:47]} 17. Bxd4 {[%clk 0:02:19]}  Bd5 {[%clk 0:01:38]} 18. Bxa7 {[%clk 0:02:15]}  Bg5 {[%clk 0:00:47]} 19. e3 {[%clk 0:02:04]}  Ra8 {[%clk 0:00:39]} 20. Bc5 {[%clk 0:02:03]}  Rfc8 {[%clk 0:00:37]} 21. Rfd1 {[%clk 0:01:58]}  Bc6 {[%clk 0:00:31]} 22. Bd4 {[%clk 0:01:40]}  Be7 {[%clk 0:00:15]} 23. Bf1 {[%clk 0:00:45]}  Ba4 {[%clk 0:00:11]} 24. Re1 {[%clk 0:00:40]}  Bb3 {[%clk 0:00:10]} 25. Bh3 {[%clk 0:00:35]}  Rd8 {[%clk 0:00:03]} 26. Rc3 {[%clk 0:00:29]}  Bd5 {[%clk 0:00:01]} 27. Rec1 {[%clk 0:00:28]} 1-0


[Site "https://www.chess.com"]

[Event "Titled Tuesday Blitz September 21 2021"]
[White "Janaszak, Dawid"]
[Black "Madaminov, Mukhiddin"]
[WhiteFideId "1119206"]
[BlackFideId "14210703"]
[WhiteElo "2283"]
[BlackElo "1855"]
[Result "0-1"]
[Round "05"]
[TimeControl "180+1"]
[Date "2021.09.21"]
[WhiteClock "0:00:02"]
[BlackClock "0:01:03"]

1. e4 {[%clk 0:03:00]}  e5 {[%clk 0:02:53]} 2. Nf3 {[%clk 0:02:57]}  Nc6 {[%clk 0:02:53]} 3. d4 {[%clk 0:02:57]}  exd4 {[%clk 0:02:54]} 4. Nxd4 {[%clk 0:02:57]}  Nf6 {[%clk 0:02:55]} 5. Nxc6 {[%clk 0:02:56]}  bxc6 {[%clk 0:02:56]} 6. e5 {[%clk 0:02:57]}  Qe7 {[%clk 0:02:56]} 7. Qe2 {[%clk 0:02:57]}  Nd5 {[%clk 0:02:57]} 8. h4 {[%clk 0:02:55]}  d6 {[%clk 0:02:54]} 9. c4 {[%clk 0:02:34]}  Nb6 {[%clk 0:02:49]} 10. exd6 {[%clk 0:02:25]}  cxd6 {[%clk 0:02:44]} 11. Bg5 {[%clk 0:02:22]}  Qxe2+ {[%clk 0:02:40]} 12. Bxe2 {[%clk 0:02:23]}  h6 {[%clk 0:02:41]} 13. Bf4 {[%clk 0:02:21]}  Be7 {[%clk 0:02:37]} 14. Nd2 {[%clk 0:02:16]}  O-O {[%clk 0:02:35]} 15. O-O-O {[%clk 0:02:05]}  d5 {[%clk 0:02:25]} 16. b3 {[%clk 0:01:50]}  Bf5 {[%clk 0:02:20]} 17. Be5 {[%clk 0:01:42]}  Rfe8 {[%clk 0:02:19]} 18. Bb2 {[%clk 0:01:29]}  a5 {[%clk 0:02:14]} 19. Bf3 {[%clk 0:01:17]}  a4 {[%clk 0:02:14]} 20. g3 {[%clk 0:01:00]}  axb3 {[%clk 0:02:13]} 21. axb3 {[%clk 0:00:59]}  Ra2 {[%clk 0:02:10]} 22. Rhe1 {[%clk 0:00:32]}  Kf8 {[%clk 0:02:11]} 23. g4 {[%clk 0:00:29]}  Bh7 {[%clk 0:02:07]} 24. g5 {[%clk 0:00:28]}  hxg5 {[%clk 0:02:05]} 25. hxg5 {[%clk 0:00:28]}  Rea8 {[%clk 0:01:55]} 26. Rh1 {[%clk 0:00:19]}  Kg8 {[%clk 0:01:43]} 27. Rxh7 {[%clk 0:00:16]}  Kxh7 {[%clk 0:01:43]} 28. Rh1+ {[%clk 0:00:16]}  Kg8 {[%clk 0:01:43]} 29. g6 {[%clk 0:00:16]}  fxg6 {[%clk 0:01:34]} 30. Bg4 {[%clk 0:00:16]}  Bf6 {[%clk 0:01:35]} 31. Be6+ {[%clk 0:00:10]}  Kf8 {[%clk 0:01:35]} 32. Bxf6 {[%clk 0:00:10]}  gxf6 {[%clk 0:01:35]} 33. Rh7 {[%clk 0:00:11]}  R2a7 {[%clk 0:01:29]} 34. Rh4 {[%clk 0:00:05]}  Ra1+ {[%clk 0:01:28]} 35. Kc2 {[%clk 0:00:04]}  R8a2+ {[%clk 0:01:28]} 36. Kc3 {[%clk 0:00:05]}  Rc1+ {[%clk 0:01:29]} 37. Kb4 {[%clk 0:00:03]}  Rxd2 {[%clk 0:01:29]} 38. Kc5 {[%clk 0:00:04]}  dxc4 {[%clk 0:01:16]} 39. bxc4 {[%clk 0:00:05]}  Nd7+ {[%clk 0:01:08]} 40. Kb4 {[%clk 0:00:02]}  c5+ {[%clk 0:01:06]} 41. Kb5 {[%clk 0:00:02]}  Rb1+ {[%clk 0:01:05]} 42. Kc6 {[%clk 0:00:02]}  Rb6+ {[%clk 0:01:02]} 43. Kc7 {[%clk 0:00:02]}  Rxe6 {[%clk 0:01:03]} 0-1


[Site "https://www.chess.com"]

[Event "Titled Tuesday Blitz September 21 2021"]
[White "Kollars, Dmitrij"]
[Black "Vakhlamov, Igor L."]
[WhiteFideId "12909572"]
[BlackFideId "24126748"]
[WhiteElo "2584"]
[BlackElo "2416"]
[Result "1-0"]
[Round "05"]
[TimeControl "180+1"]
[Date "2021.09.21"]
[WhiteClock "0:00:06"]
[BlackClock "0:00:01"]

1. e4 {[%clk 0:03:00]}  c5 {[%clk 0:02:59]} 2. Nf3 {[%clk 0:03:00]}  Nc6 {[%clk 0:02:59]} 3. Bb5 {[%clk 0:03:00]}  Nf6 {[%clk 0:02:59]} 4. Nc3 {[%clk 0:02:58]}  g6 {[%clk 0:02:58]} 5. O-O {[%clk 0:02:56]}  Bg7 {[%clk 0:02:58]} 6. e5 {[%clk 0:02:56]}  Ng4 {[%clk 0:02:57]} 7. Bxc6 {[%clk 0:02:56]}  dxc6 {[%clk 0:02:58]} 8. Re1 {[%clk 0:02:56]}  O-O {[%clk 0:02:57]} 9. d3 {[%clk 0:02:57]}  b6 {[%clk 0:02:54]} 10. Bf4 {[%clk 0:02:56]}  Nh6 {[%clk 0:02:51]} 11. Ne4 {[%clk 0:02:45]}  Nf5 {[%clk 0:02:50]} 12. Qd2 {[%clk 0:02:44]}  Nd4 {[%clk 0:02:48]} 13. Nxd4 {[%clk 0:02:35]}  cxd4 {[%clk 0:02:24]} 14. Bh6 {[%clk 0:02:27]}  c5 {[%clk 0:02:24]} 15. Qf4 {[%clk 0:02:22]}  Bb7 {[%clk 0:02:10]} 16. h4 {[%clk 0:02:20]}  Qd7 {[%clk 0:01:59]} 17. h5 {[%clk 0:02:07]}  Qf5 {[%clk 0:01:39]} 18. Ng3 {[%clk 0:01:44]}  Qxf4 {[%clk 0:01:33]} 19. Bxf4 {[%clk 0:01:45]}  e6 {[%clk 0:01:27]} 20. h6 {[%clk 0:01:45]}  Bh8 {[%clk 0:01:26]} 21. a4 {[%clk 0:01:37]}  Bd5 {[%clk 0:01:17]} 22. Ne4 {[%clk 0:01:29]}  Rfd8 {[%clk 0:01:07]} 23. a5 {[%clk 0:01:25]}  b5 {[%clk 0:01:04]} 24. Nxc5 {[%clk 0:01:23]}  b4 {[%clk 0:00:57]} 25. Nb3 {[%clk 0:01:07]}  Bc6 {[%clk 0:00:23]} 26. Nd2 {[%clk 0:01:04]}  Bd5 {[%clk 0:00:18]} 27. b3 {[%clk 0:01:04]}  f6 {[%clk 0:00:16]} 28. exf6 {[%clk 0:00:55]}  Bxf6 {[%clk 0:00:17]} 29. Nc4 {[%clk 0:00:56]}  Rac8 {[%clk 0:00:12]} 30. a6 {[%clk 0:00:54]}  Rc6 {[%clk 0:00:08]} 31. Ra4 {[%clk 0:00:54]}  Be7 {[%clk 0:00:08]} 32. Be5 {[%clk 0:00:52]}  Kf7 {[%clk 0:00:08]} 33. Bg7 {[%clk 0:00:45]}  Bxc4 {[%clk 0:00:08]} 34. bxc4 {[%clk 0:00:44]}  Rb6 {[%clk 0:00:06]} 35. Re4 {[%clk 0:00:38]}  Bc5 {[%clk 0:00:04]} 36. Ra5 {[%clk 0:00:37]}  Be7 {[%clk 0:00:04]} 37. Bxd4 {[%clk 0:00:36]}  b3 {[%clk 0:00:02]} 38. Bxb6 {[%clk 0:00:32]}  bxc2 {[%clk 0:00:02]} 39. Be3 {[%clk 0:00:28]}  Rxd3 {[%clk 0:00:01]} 40. Bf4 {[%clk 0:00:09]}  Rd1+ {[%clk 0:00:01]} 41. Kh2 {[%clk 0:00:09]}  Bd6 {[%clk 0:00:01]} 42. Rae5 {[%clk 0:00:06]}  Bxe5 {[%clk 0:00:01]} 43. Rxe5 {[%clk 0:00:07]}  Rd4 {[%clk 0:00:01]} 44. Bc1 {[%clk 0:00:06]}  Rd1 {[%clk 0:00:01]} 45. Bg5 {[%clk 0:00:06]} 1-0


[Site "https://www.chess.com"]

[Event "Titled Tuesday Blitz September 21 2021"]
[White "Koridze, Lile"]
[Black "Moksh Amit Doshi"]
[WhiteFideId "13612514"]
[BlackFideId "25064967"]
[WhiteElo "1978"]
[BlackElo "2245"]
[Result "0-1"]
[Round "05"]
[TimeControl "180+1"]
[Date "2021.09.21"]
[WhiteClock "0:00:02"]
[BlackClock "0:00:17"]

1. d4 {[%clk 0:03:00]}  Nf6 {[%clk 0:02:50]} 2. c4 {[%clk 0:03:00]}  g6 {[%clk 0:02:51]} 3. Nc3 {[%clk 0:03:00]}  d5 {[%clk 0:02:51]} 4. Nf3 {[%clk 0:03:00]}  Bg7 {[%clk 0:02:52]} 5. Bg5 {[%clk 0:03:00]}  Ne4 {[%clk 0:02:51]} 6. cxd5 {[%clk 0:03:01]}  Nxg5 {[%clk 0:02:51]} 7. Nxg5 {[%clk 0:03:02]}  e6 {[%clk 0:02:52]} 8. Qd2 {[%clk 0:03:02]}  exd5 {[%clk 0:02:52]} 9. Qe3+ {[%clk 0:03:03]}  Kf8 {[%clk 0:02:53]} 10. Qf4 {[%clk 0:03:03]}  f6 {[%clk 0:02:31]} 11. h4 {[%clk 0:02:42]}  Bf5 {[%clk 0:02:20]} 12. Nf3 {[%clk 0:02:39]}  Nc6 {[%clk 0:02:16]} 13. a3 {[%clk 0:02:36]}  Qd7 {[%clk 0:02:08]} 14. e3 {[%clk 0:02:31]}  Re8 {[%clk 0:02:03]} 15. Be2 {[%clk 0:02:24]}  Kf7 {[%clk 0:02:03]} 16. O-O {[%clk 0:02:14]}  h6 {[%clk 0:02:01]} 17. Rac1 {[%clk 0:02:11]}  g5 {[%clk 0:02:00]} 18. Qg3 {[%clk 0:02:02]}  Bf8 {[%clk 0:01:59]} 19. Nxd5 {[%clk 0:01:40]}  Bd6 {[%clk 0:01:54]} 20. Ne5+ {[%clk 0:01:39]}  fxe5 {[%clk 0:01:50]} 21. Bc4 {[%clk 0:01:37]}  Kg7 {[%clk 0:01:36]} 22. hxg5 {[%clk 0:01:33]}  exd4 {[%clk 0:01:05]} 23. gxh6+ {[%clk 0:01:31]}  Kf8 {[%clk 0:01:06]} 24. Qg5 {[%clk 0:01:26]}  Rg8 {[%clk 0:00:49]} 25. Qxg8+ {[%clk 0:01:03]}  Kxg8 {[%clk 0:00:50]} 26. Nf6+ {[%clk 0:01:04]}  Kh8 {[%clk 0:00:50]} 27. Nxd7 {[%clk 0:01:04]}  Bxd7 {[%clk 0:00:51]} 28. exd4 {[%clk 0:01:02]}  Nxd4 {[%clk 0:00:52]} 29. Rfe1 {[%clk 0:00:56]}  Rf8 {[%clk 0:00:43]} 30. Re4 {[%clk 0:00:24]}  c5 {[%clk 0:00:34]} 31. Rd1 {[%clk 0:00:22]}  Bc6 {[%clk 0:00:31]} 32. Rg4 {[%clk 0:00:17]}  Be5 {[%clk 0:00:27]} 33. Re1 {[%clk 0:00:14]}  Bf4 {[%clk 0:00:22]} 34. Re7 {[%clk 0:00:12]}  Bxh6 {[%clk 0:00:20]} 35. Bd3 {[%clk 0:00:10]}  Nf5 {[%clk 0:00:18]} 36. Re6 {[%clk 0:00:06]}  Bd7 {[%clk 0:00:14]} 37. Bxf5 {[%clk 0:00:05]}  Bxe6 {[%clk 0:00:14]} 38. Bxe6 {[%clk 0:00:06]}  Re8 {[%clk 0:00:15]} 39. Rg6 {[%clk 0:00:06]}  Bg7 {[%clk 0:00:16]} 40. g3 {[%clk 0:00:05]}  Rd8 {[%clk 0:00:16]} 41. b3 {[%clk 0:00:02]}  Rd2 {[%clk 0:00:17]} 0-1


[Site "https://www.chess.com"]

[Event "Titled Tuesday Blitz September 21 2021"]
[White "Kovalchuk94"]
[Black "Estrada Nieto, Julian"]
[BlackFideId "5101018"]
[WhiteElo "2690"]
[BlackElo "2270"]
[Result "1/2-1/2"]
[Round "05"]
[TimeControl "180+1"]
[Date "2021.09.21"]
[WhiteClock "0:00:46"]
[BlackClock "0:01:04"]

1. d4 {[%clk 0:02:41]}  d5 {[%clk 0:02:55]} 2. c4 {[%clk 0:02:41]}  dxc4 {[%clk 0:02:54]} 3. e4 {[%clk 0:02:41]}  e5 {[%clk 0:02:54]} 4. Nf3 {[%clk 0:02:41]}  exd4 {[%clk 0:02:54]} 5. Bxc4 {[%clk 0:02:41]}  Nc6 {[%clk 0:02:55]} 6. O-O {[%clk 0:02:38]}  Be6 {[%clk 0:02:54]} 7. Bb5 {[%clk 0:02:32]}  Bc5 {[%clk 0:02:53]} 8. b4 {[%clk 0:02:32]}  Bb6 {[%clk 0:02:53]} 9. a4 {[%clk 0:02:32]}  a6 {[%clk 0:02:54]} 10. Bxc6+ {[%clk 0:02:32]}  bxc6 {[%clk 0:02:54]} 11. a5 {[%clk 0:02:32]}  Ba7 {[%clk 0:02:54]} 12. Bb2 {[%clk 0:02:33]}  Nf6 {[%clk 0:02:55]} 13. Bxd4 {[%clk 0:02:22]}  Nxe4 {[%clk 0:02:47]} 14. Re1 {[%clk 0:02:18]}  Nf6 {[%clk 0:02:42]} 15. Bxa7 {[%clk 0:02:16]}  Qxd1 {[%clk 0:02:35]} 16. Rxd1 {[%clk 0:02:17]}  Rxa7 {[%clk 0:02:36]} 17. Nd4 {[%clk 0:02:15]}  Bd7 {[%clk 0:02:22]} 18. Re1+ {[%clk 0:02:11]}  Kd8 {[%clk 0:02:21]} 19. Nc3 {[%clk 0:02:10]}  Re8 {[%clk 0:02:20]} 20. Na4 {[%clk 0:02:09]}  Rxe1+ {[%clk 0:02:12]} 21. Rxe1 {[%clk 0:02:10]}  Rb7 {[%clk 0:02:12]} 22. Rd1 {[%clk 0:02:03]}  Kc8 {[%clk 0:01:55]} 23. Nc5 {[%clk 0:02:00]}  Rxb4 {[%clk 0:01:53]} 24. Nxa6 {[%clk 0:01:03]}  Ra4 {[%clk 0:01:52]} 25. Nb3 {[%clk 0:00:56]}  Be6 {[%clk 0:01:42]} 26. Nac5 {[%clk 0:00:53]}  Bxb3 {[%clk 0:01:40]} 27. Nxb3 {[%clk 0:00:54]}  Ra3 {[%clk 0:01:36]} 28. Nd4 {[%clk 0:00:53]}  Rxa5 {[%clk 0:01:21]} 29. Nxc6 {[%clk 0:00:53]}  Rc5 {[%clk 0:01:15]} 30. Ne7+ {[%clk 0:00:53]}  Kb7 {[%clk 0:01:13]} 31. Rb1+ {[%clk 0:00:54]}  Ka6 {[%clk 0:01:11]} 32. g3 {[%clk 0:00:49]}  Nd5 {[%clk 0:01:10]} 33. Ra1+ {[%clk 0:00:46]}  Kb7 {[%clk 0:01:07]} 34. Rb1+ {[%clk 0:00:45]}  Ka6 {[%clk 0:01:04]} 35. Ra1+ {[%clk 0:00:46]}  Kb7 {[%clk 0:01:04]} 36. Rb1+ {[%clk 0:00:46]}  Ka6 {[%clk 0:01:04]} 1/2-1/2


[Site "https://www.chess.com"]

[Event "Titled Tuesday Blitz September 21 2021"]
[White "Kovalev, Vladislav"]
[Black "Tomb, Maroun"]
[WhiteFideId "13504398"]
[BlackFideId "5300398"]
[WhiteElo "2573"]
[BlackElo "2593"]
[Result "1-0"]
[Round "05"]
[TimeControl "180+1"]
[Date "2021.09.21"]
[WhiteClock "0:00:11"]
[BlackClock "0:00:05"]

1. e4 {[%clk 0:03:00]}  d6 {[%clk 0:02:59]} 2. d4 {[%clk 0:03:00]}  Nf6 {[%clk 0:02:59]} 3. Nc3 {[%clk 0:03:00]}  e5 {[%clk 0:03:00]} 4. Nf3 {[%clk 0:03:00]}  Nbd7 {[%clk 0:03:00]} 5. Bc4 {[%clk 0:03:00]}  Be7 {[%clk 0:03:00]} 6. O-O {[%clk 0:03:00]}  h6 {[%clk 0:03:00]} 7. a4 {[%clk 0:03:01]}  c6 {[%clk 0:03:00]} 8. Re1 {[%clk 0:03:01]}  Qc7 {[%clk 0:03:01]} 9. b3 {[%clk 0:02:59]}  Nf8 {[%clk 0:03:01]} 10. Bb2 {[%clk 0:02:55]}  Ng6 {[%clk 0:03:01]} 11. Qd2 {[%clk 0:02:51]}  O-O {[%clk 0:02:58]} 12. h3 {[%clk 0:02:51]}  Nh5 {[%clk 0:02:56]} 13. Bf1 {[%clk 0:02:36]}  Be6 {[%clk 0:02:42]} 14. g3 {[%clk 0:02:29]}  Rad8 {[%clk 0:02:37]} 15. Bg2 {[%clk 0:02:22]}  Qc8 {[%clk 0:02:28]} 16. Kh2 {[%clk 0:02:19]}  Nf6 {[%clk 0:02:25]} 17. Rad1 {[%clk 0:02:14]}  Qc7 {[%clk 0:02:22]} 18. Qc1 {[%clk 0:01:57]}  a6 {[%clk 0:02:20]} 19. Qa1 {[%clk 0:01:49]}  b5 {[%clk 0:02:19]} 20. Nb1 {[%clk 0:01:45]}  Nd7 {[%clk 0:01:56]} 21. Nbd2 {[%clk 0:01:32]}  Bf6 {[%clk 0:01:36]} 22. Nf1 {[%clk 0:01:26]}  Nb6 {[%clk 0:01:28]} 23. a5 {[%clk 0:01:20]}  Nc8 {[%clk 0:01:25]} 24. Ne3 {[%clk 0:01:15]}  Nce7 {[%clk 0:01:14]} 25. Rd2 {[%clk 0:01:10]}  c5 {[%clk 0:01:12]} 26. d5 {[%clk 0:00:52]}  Bc8 {[%clk 0:01:12]} 27. c4 {[%clk 0:00:53]}  b4 {[%clk 0:01:04]} 28. Ng4 {[%clk 0:00:53]}  Bxg4 {[%clk 0:00:56]} 29. hxg4 {[%clk 0:00:54]}  Rfe8 {[%clk 0:00:40]} 30. Bh3 {[%clk 0:00:54]}  Nf8 {[%clk 0:00:40]} 31. Kg2 {[%clk 0:00:52]}  Nh7 {[%clk 0:00:40]} 32. Rdd1 {[%clk 0:00:46]}  Ra8 {[%clk 0:00:34]} 33. Bc1 {[%clk 0:00:42]}  Ng6 {[%clk 0:00:29]} 34. Re2 {[%clk 0:00:39]}  Qe7 {[%clk 0:00:28]} 35. Kg1 {[%clk 0:00:28]}  Reb8 {[%clk 0:00:24]} 36. Bg2 {[%clk 0:00:26]}  Kf8 {[%clk 0:00:24]} 37. Nd2 {[%clk 0:00:25]}  Bg5 {[%clk 0:00:23]} 38. Bb2 {[%clk 0:00:25]}  Ke8 {[%clk 0:00:23]} 39. Nf1 {[%clk 0:00:25]}  Kd7 {[%clk 0:00:23]} 40. Ne3 {[%clk 0:00:25]}  Kc7 {[%clk 0:00:22]} 41. Nf5 {[%clk 0:00:25]}  Qf6 {[%clk 0:00:22]} 42. f4 {[%clk 0:00:21]}  Nxf4 {[%clk 0:00:21]} 43. gxf4 {[%clk 0:00:21]}  Bxf4 {[%clk 0:00:22]} 44. Rd3 {[%clk 0:00:21]}  g6 {[%clk 0:00:21]} 45. Ne3 {[%clk 0:00:17]}  Qg5 {[%clk 0:00:21]} 46. Qf1 {[%clk 0:00:14]}  Nf6 {[%clk 0:00:21]} 47. Bf3 {[%clk 0:00:08]}  Rh8 {[%clk 0:00:21]} 48. Ng2 {[%clk 0:00:08]}  h5 {[%clk 0:00:20]} 49. Nxf4 {[%clk 0:00:08]}  hxg4 {[%clk 0:00:19]} 50. Ne6+ {[%clk 0:00:05]}  fxe6 {[%clk 0:00:19]} 51. Bg2 {[%clk 0:00:05]}  exd5 {[%clk 0:00:13]} 52. cxd5 {[%clk 0:00:03]}  Raf8 {[%clk 0:00:14]} 53. Qc1 {[%clk 0:00:02]}  Qh4 {[%clk 0:00:13]} 54. Rf2 {[%clk 0:00:02]}  Nh5 {[%clk 0:00:13]} 55. Rxf8 {[%clk 0:00:02]}  Rxf8 {[%clk 0:00:14]} 56. Qd2 {[%clk 0:00:02]}  Nf4 {[%clk 0:00:13]} 57. Re3 {[%clk 0:00:02]}  Rh8 {[%clk 0:00:12]} 58. Kf1 {[%clk 0:00:02]}  Qh2 {[%clk 0:00:12]} 59. Qf2 {[%clk 0:00:02]}  Qh5 {[%clk 0:00:11]} 60. Bc1 {[%clk 0:00:02]}  Rf8 {[%clk 0:00:10]} 61. Ke1 {[%clk 0:00:02]}  Qh6 {[%clk 0:00:10]} 62. Qd2 {[%clk 0:00:01]}  g5 {[%clk 0:00:10]} 63. Qf2 {[%clk 0:00:01]}  Qh4 {[%clk 0:00:09]} 64. Qxh4 {[%clk 0:00:02]}  Nxg2+ {[%clk 0:00:10]} 65. Ke2 {[%clk 0:00:01]}  Nxh4 {[%clk 0:00:11]} 66. Rg3 {[%clk 0:00:01]}  Nf3 {[%clk 0:00:09]} 67. Rxg4 {[%clk 0:00:02]}  Nd4+ {[%clk 0:00:10]} 68. Kd3 {[%clk 0:00:02]}  Nxb3 {[%clk 0:00:10]} 69. Bxg5 {[%clk 0:00:03]}  Rf7 {[%clk 0:00:10]} 70. Be3 {[%clk 0:00:04]}  Nxa5 {[%clk 0:00:11]} 71. Rg8 {[%clk 0:00:04]}  c4+ {[%clk 0:00:12]} 72. Kd2 {[%clk 0:00:04]}  Nb7 {[%clk 0:00:12]} 73. Ra8 {[%clk 0:00:03]}  a5 {[%clk 0:00:12]} 74. Ra6 {[%clk 0:00:04]}  Kd7 {[%clk 0:00:11]} 75. Ra7 {[%clk 0:00:04]}  Kc7 {[%clk 0:00:11]} 76. Ra6 {[%clk 0:00:04]}  Kb8 {[%clk 0:00:11]} 77. Bb6 {[%clk 0:00:05]}  Rf2+ {[%clk 0:00:11]} 78. Bxf2 {[%clk 0:00:05]}  c3+ {[%clk 0:00:10]} 79. Kc2 {[%clk 0:00:05]}  Kc7 {[%clk 0:00:09]} 80. Bb6+ {[%clk 0:00:06]}  Kb8 {[%clk 0:00:09]} 81. Kb3 {[%clk 0:00:06]}  Kc8 {[%clk 0:00:08]} 82. Ra8+ {[%clk 0:00:07]}  Kd7 {[%clk 0:00:08]} 83. Ra7 {[%clk 0:00:07]}  Kc8 {[%clk 0:00:08]} 84. Ra6 {[%clk 0:00:07]}  Kb8 {[%clk 0:00:08]} 85. Bf2 {[%clk 0:00:07]}  Kc7 {[%clk 0:00:08]} 86. Be3 {[%clk 0:00:08]}  Kb8 {[%clk 0:00:09]} 87. Bb6 {[%clk 0:00:09]}  Kc8 {[%clk 0:00:09]} 88. Kc2 {[%clk 0:00:08]}  Kd7 {[%clk 0:00:08]} 89. Bxa5 {[%clk 0:00:08]}  Nc5 {[%clk 0:00:08]} 90. Ra7+ {[%clk 0:00:09]}  Kc8 {[%clk 0:00:08]} 91. Bxb4 {[%clk 0:00:10]}  Nxe4 {[%clk 0:00:09]} 92. Bxc3 {[%clk 0:00:10]}  Nf6 {[%clk 0:00:09]} 93. Ra5 {[%clk 0:00:09]}  Kd7 {[%clk 0:00:08]} 94. Bb4 {[%clk 0:00:10]}  Kc7 {[%clk 0:00:07]} 95. Kb3 {[%clk 0:00:09]}  Kb6 {[%clk 0:00:07]} 96. Kc4 {[%clk 0:00:09]}  Ne4 {[%clk 0:00:06]} 97. Rb5+ {[%clk 0:00:09]}  Kc7 {[%clk 0:00:07]} 98. Ra5 {[%clk 0:00:08]}  Kb6 {[%clk 0:00:07]} 99. Ra2 {[%clk 0:00:09]}  Kc7 {[%clk 0:00:07]} 100. Ra6 {[%clk 0:00:09]}  Kd7 {[%clk 0:00:06]} 101. Ra7+ {[%clk 0:00:09]}  Kc8 {[%clk 0:00:07]} 102. Kb5 {[%clk 0:00:09]}  Nf6 {[%clk 0:00:06]} 103. Kc6 {[%clk 0:00:09]}  Kd8 {[%clk 0:00:06]} 104. Bxd6 {[%clk 0:00:09]}  Ke8 {[%clk 0:00:06]} 105. Re7+ {[%clk 0:00:10]}  Kf8 {[%clk 0:00:06]} 106. Rxe5+ {[%clk 0:00:10]}  Kg8 {[%clk 0:00:06]} 107. Re6 {[%clk 0:00:10]}  Ng4 {[%clk 0:00:06]} 108. Rg6+ {[%clk 0:00:10]}  Kh7 {[%clk 0:00:05]} 109. Rxg4 {[%clk 0:00:11]} 1-0


[Site "https://www.chess.com"]

[Event "Titled Tuesday Blitz September 21 2021"]
[White "Kozak, Adam"]
[Black "Pinheiro, Iung Alicio de O."]
[WhiteFideId "753246"]
[BlackFideId "2104350"]
[WhiteElo "2448"]
[BlackElo "2618"]
[Result "1-0"]
[Round "05"]
[TimeControl "180+1"]
[Date "2021.09.21"]
[WhiteClock "0:01:14"]
[BlackClock "0:01:04"]

1. e4 {[%clk 0:02:34]}  c6 {[%clk 0:02:57]} 2. d4 {[%clk 0:02:32]}  d5 {[%clk 0:02:57]} 3. exd5 {[%clk 0:02:31]}  cxd5 {[%clk 0:02:57]} 4. Nf3 {[%clk 0:02:31]}  Nc6 {[%clk 0:02:55]} 5. Bd3 {[%clk 0:02:28]}  Bg4 {[%clk 0:02:53]} 6. c3 {[%clk 0:02:11]}  Nf6 {[%clk 0:02:50]} 7. h3 {[%clk 0:02:08]}  Bh5 {[%clk 0:02:47]} 8. Nbd2 {[%clk 0:02:06]}  e6 {[%clk 0:02:43]} 9. O-O {[%clk 0:02:05]}  Bd6 {[%clk 0:02:42]} 10. Re1 {[%clk 0:02:05]}  Qc7 {[%clk 0:02:36]} 11. a4 {[%clk 0:02:02]}  g5 {[%clk 0:02:23]} 12. g4 {[%clk 0:02:00]}  Bg6 {[%clk 0:02:21]} 13. Bxg6 {[%clk 0:01:36]}  hxg6 {[%clk 0:02:22]} 14. Nxg5 {[%clk 0:01:35]}  O-O-O {[%clk 0:02:08]} 15. Ndf3 {[%clk 0:01:34]}  Nh7 {[%clk 0:01:46]} 16. Kg2 {[%clk 0:01:30]}  Bf4 {[%clk 0:01:41]} 17. Bxf4 {[%clk 0:01:27]}  Qxf4 {[%clk 0:01:40]} 18. Nxh7 {[%clk 0:01:27]}  Rxh7 {[%clk 0:01:40]} 19. Qd2 {[%clk 0:01:28]}  Qc7 {[%clk 0:01:27]} 20. Qg5 {[%clk 0:01:26]}  Rdh8 {[%clk 0:01:26]} 21. Rh1 {[%clk 0:01:25]}  f5 {[%clk 0:01:15]} 22. Rae1 {[%clk 0:01:23]}  Qf7 {[%clk 0:01:10]} 23. Qf4 {[%clk 0:01:19]}  Qf6 {[%clk 0:01:05]} 24. Ng5 {[%clk 0:01:17]}  Rf7 {[%clk 0:01:04]} 25. Rxe6 {[%clk 0:01:14]} 1-0


[Site "https://www.chess.com"]